fUSD/lending_fUSD_20260406
["ID","MTS","AMOUNT","RATE_DAILY","PERIOD"]
[419910753,1775497852460,-151.0,0.00015997,2]
[419910754,1775497852470,-151.0,0.00015997,2]
[419910755,1775497852479,-151.0,0.00015997,2]
[419910756,1775497852488,-202.217067,0.00015997,2]
[419910757,1775497852499,-151.0,0.00015997,2]
[419910758,1775497852510,-151.0,0.00015997,2]
[419910759,1775497852519,-151.0,0.00015997,2]
[419910760,1775497852528,-151.0,0.00015997,2]
[419910761,1775497852538,-151.0,0.00015997,2]
[419910762,1775497852547,-151.0,0.00015997,2]
[419910763,1775497852557,-151.0,0.00015997,2]
[419910764,1775497852566,-151.0,0.00015997,2]
[419910765,1775497852576,-151.0,0.00015997,2]
[419910766,1775497852585,-151.0,0.00015997,2]
[419910767,1775497852594,-151.0,0.00015997,2]
[419910768,1775497852604,-151.0,0.00015997,2]
[419910769,1775497852613,-151.0,0.00015997,2]
[419910770,1775497852624,-151.0,0.00015997,2]
[419910771,1775497852633,-151.0,0.00015997,2]
[419910772,1775497852642,-151.0,0.00015997,2]
[419910773,1775497852652,-151.0,0.00015997,2]
[419910774,1775497852661,-226.762757,0.00015997,2]
[419910775,1775497852670,-151.0,0.00015997,2]
[419910776,1775497852680,-300.261063,0.00015997,2]
[419910777,1775497852689,-151.0,0.00015997,2]
[419910778,1775497852698,-300.261063,0.00015997,2]
[419910779,1775497852708,-151.0,0.00015997,2]
[419910780,1775497852718,-300.261063,0.00015997,2]
[419910781,1775497852727,-151.0,0.00015997,2]
[419910782,1775497852736,-300.261063,0.00015997,2]
[419910783,1775497852745,-151.0,0.00015997,2]
[419910784,1775497852754,-151.0,0.00015997,2]
[419910785,1775497852763,-276.32838,0.00015997,2]
[419910786,1775497852773,-151.0,0.00015997,2]
[419910787,1775497852782,-276.32838,0.00015997,2]
[419910788,1775497852791,-276.32838,0.00015997,2]
[419910789,1775497852799,-276.32838,0.00015997,2]
[419910790,1775497852809,-151.0,0.00015997,2]
[419910791,1775497852818,-151.0,0.00015997,2]
[419910792,1775497852828,-151.0,0.00015997,2]
[419910793,1775497852837,-151.0,0.00015997,2]
[419910794,1775497852846,-151.0,0.00015997,2]
[419910795,1775497852856,-151.0,0.00015997,2]
[419910796,1775497852865,-151.0,0.00015997,2]
[419910797,1775497852875,-151.0,0.00015997,2]
[419910798,1775497852884,-764.02772,0.00015997,2]
[419910799,1775497852894,-151.0,0.00015997,2]
[419910800,1775497852903,-151.0,0.00015997,2]
[419910801,1775497852913,-151.0,0.00015997,2]
[419910802,1775497852922,-229.146827,0.00015997,2]
[419910803,1775497852931,-764.02772,0.00015997,2]
[419910804,1775497852940,-151.0,0.00015997,2]
[419910805,1775497852949,-764.02772,0.00015997,2]
[419910806,1775497852959,-151.0,0.00015997,2]
[419910807,1775497852968,-151.0,0.00015997,2]
[419910808,1775497852977,-764.02772,0.00015997,2]
[419910809,1775497852987,-272.199966,0.00015997,2]
[419910810,1775497852996,-272.199966,0.00015997,2]
[419910811,1775497853005,-151.0,0.00015997,2]
[419910812,1775497853015,-272.199966,0.00015997,2]
[419910813,1775497853024,-272.199966,0.00015997,2]
[419910814,1775497853033,-162.535463,0.00015997,2]
[419910815,1775497853043,-462.733763,0.00015997,2]
[419910816,1775497853052,-193.74425,0.00015997,2]
[419910817,1775497853061,-162.535463,0.00015997,2]
[419910818,1775497853070,-462.733763,0.00015997,2]
[419910819,1775497853080,-193.74425,0.00015997,2]
[419910820,1775497853089,-162.535463,0.00015997,2]
[419910821,1775497853098,-462.733763,0.00015997,2]
[419910822,1775497853107,-193.74425,0.00015997,2]
[419910823,1775497853117,-162.535463,0.00015997,2]
[419910824,1775497853126,-462.733763,0.00015997,2]
[419910825,1775497853135,-193.74425,0.00015997,2]
[419910826,1775497853145,-151.0,0.00015997,2]
[419910827,1775497853154,-151.0,0.00015997,2]
[419910828,1775497853164,-151.0,0.00015997,2]
[419910829,1775497853173,-227.412377,0.00015997,2]
[419910830,1775497853182,-500.0,0.00015998,2]
[419910831,1775497853191,-334.02643621,0.00015998,2]
[419910832,1775497853201,-500.0,0.00015998,2]
[419910833,1775497853211,-500.0,0.00015998,2]
[419910834,1775497853220,-530.03,0.00015998,2]
[419910835,1775497853230,-670.84839751,0.00015998,2]
[419910836,1775497853239,-1240.41933555,0.00015999,5]
[419910837,1775497853249,-500.0,0.00015999,2]
[419910838,1775497853258,-500.0,0.00015999,2]
[419910839,1775497853267,-500.0,0.00015999,2]
[419910840,1775497853276,-150.0,0.00015999,2]
[419910841,1775497853286,-500.0,0.00015999,2]
[419910842,1775497853295,-500.0,0.00015999,2]
[419910843,1775497853304,-500.0,0.00015999,2]
[419910844,1775497853314,-500.0,0.00015999,2]
[419910845,1775497853323,-500.0,0.00015999,2]
[419910846,1775497853333,-500.0,0.00015999,2]
[419910847,1775497853342,-500.0,0.00015999,2]
[419910848,1775497853351,-500.0,0.00015999,2]
[419910849,1775497853360,-500.0,0.00015999,2]
[419910850,1775497853370,-500.0,0.00015999,2]
[419910851,1775497853379,-500.0,0.00015999,2]
[419910852,1775497853388,-500.0,0.00015999,2]
[419910853,1775497853398,-500.0,0.00015999,2]
[419910854,1775497853407,-500.0,0.00015999,2]
[419910855,1775497853417,-500.0,0.00015999,2]
[419910856,1775497853427,-500.0,0.00015999,2]
[419910857,1775497853436,-500.0,0.00015999,2]
[419910858,1775497853446,-500.0,0.00015999,2]
[419910859,1775497853456,-500.0,0.00015999,2]
[419910860,1775497853466,-500.0,0.00015999,2]
[419910861,1775497853475,-500.0,0.00015999,2]
[419910862,1775497853485,-500.0,0.00015999,2]
[419910863,1775497853495,-500.0,0.00015999,2]
[419910864,1775497853504,-500.0,0.00015999,2]
[419910865,1775497853514,-500.0,0.00015999,2]
[419910866,1775497853524,-500.0,0.00015999,2]
[419910867,1775497853534,-500.0,0.00015999,2]
[419910868,1775497853544,-500.0,0.00015999,2]
[419910869,1775497853554,-500.0,0.00015999,2]
[419910870,1775497853564,-500.0,0.00015999,2]
[419910871,1775497853574,-500.0,0.00015999,2]
[419910872,1775497853584,-500.0,0.00015999,2]
[419910873,1775497853594,-500.0,0.00015999,2]
[419910874,1775497853604,-500.0,0.00015999,2]
[419910875,1775497853614,-500.0,0.00015999,2]
[419910876,1775497853623,-520.24272845,0.00015999,2]
[419910877,1775497853633,-500.0,0.00015999,2]
[419910878,1775497853642,-500.0,0.00015999,2]
[419910879,1775497853651,-500.0,0.00015999,2]
[419910880,1775497853661,-500.0,0.00015999,2]
[419910881,1775497853670,-500.0,0.00015999,2]
[419910882,1775497853679,-163.75,0.00015999,2]
[419910883,1775497853688,-151.0,0.00015999,2]
[419910884,1775497853698,-151.0,0.00015999,2]
[419910885,1775497853707,-151.0,0.00015999,2]
[419910886,1775497853717,-225.006569,0.00015999,2]
[419910887,1775497853726,-151.0,0.00015999,2]
[419910888,1775497853735,-151.0,0.00015999,2]
[419910889,1775497853744,-390.85991,0.00015999,2]
[419910890,1775497853754,-390.85991,0.00015999,2]
[419910891,1775497853763,-151.0,0.00015999,2]
[419910892,1775497853772,-390.85991,0.00015999,2]
[419910893,1775497853781,-151.0,0.00015999,2]
[419910894,1775497853790,-390.85991,0.00015999,2]
[419910895,1775497853799,-151.0,0.00015999,2]
[419910896,1775497853809,-151.0,0.00015999,2]
[419910897,1775497853818,-151.0,0.00015999,2]
[419910898,1775497853829,-151.0,0.00015999,2]
[419910899,1775497853838,-229.550899,0.00015999,2]
[419910900,1775497853848,-229.550899,0.00015999,2]
[419910901,1775497853857,-229.550899,0.00015999,2]
[419910902,1775497853877,-229.550899,0.00015999,2]
[419910903,1775497853888,-188.645032,0.00015999,2]
[419910904,1775497853898,-188.645032,0.00015999,2]
[419910905,1775497853908,-188.645032,0.00015999,2]
[419910906,1775497853918,-188.645032,0.00015999,2]
[419910907,1775497853928,-530.03,0.00015999,2]
[419910908,1775497853938,-530.03,0.00015999,2]
[419910909,1775497853947,-530.03,0.00015999,2]
[419910910,1775497853957,-530.03,0.00015999,2]
[419910911,1775497853967,-530.03,0.00015999,2]
[419910912,1775497853977,-530.03,0.00015999,2]
[419910913,1775497853987,-530.03,0.00015999,2]
[419910914,1775497853997,-530.10865542,0.00015999,2]
[419910915,1775497854006,-163.28038249,0.00015999,2]
[419910916,1775497854016,-620.46209973,0.00015999,2]
[419910917,1775497854026,-561.43871282,0.00016,2]
[419910918,1775497854036,-561.43871281,0.00016,2]
[419910919,1775497854045,-1215800.95793631,0.00016,2]
[419910920,1775497854055,-132671.81277635,0.00016,2]
[419910921,1775497854064,-473907.46329265,0.00016,2]
[419910922,1775497854075,-230609.56178373,0.00016,2]
[419910923,1775497855986,-34443.99712,0.00016,2]
[419910924,1775497856007,-44430.30828333,0.00016,2]
[419910925,1775497856018,-355.30811861,0.00016,2]
[419910926,1775497856029,-1170.75638054,0.00016,2]
[419910927,1775497856895,-151.0,0.00015997,2]
[419910928,1775497856911,-151.0,0.00015997,2]
[419910929,1775497856925,-227.412377,0.00015997,2]
[419910930,1775497856940,-139007.13317608,0.00016,2]
[419910931,1775497856955,-97041.29888832,0.00016,2]
[419910932,1775497857005,-150.0,0.00016,2]
[419910933,1775497857021,-850085.80585038,0.00016,2]
[419910934,1775497857037,-155456.58845603,0.00016,2]
[419910935,1775497857052,-157.597666,0.00016,2]
[419910936,1775497857067,-245.80040067,0.00016,2]
[419910937,1775497857082,-2207044.80607128,0.00016,2]
[419910938,1775497857108,-820.09652804,0.00016,2]
[419910939,1775497857127,-579.07547023,0.00016,2]
[419910940,1775497857282,-151.0,0.00015997,2]
[419910941,1775497857295,-380.6,0.00016,2]
[419910942,1775497857312,-43594.58483047,0.00016,2]
[419910943,1775497857329,-292.04555137,0.00016,2]
[419910944,1775497857352,-781.06101906,0.00016,2]
[419910945,1775497857368,-674.66537723,0.00016,2]
[419910946,1775497857859,-185.25470895,0.00016,2]
[419910947,1775497857877,-4413.77588023,0.00016,2]
[419910948,1775497857892,-1487.0,0.00016,2]
[419910949,1775497857908,-7721.94853633,0.00016,2]
[419910950,1775497858490,-1516.30247805,0.00010799,2]
[419910951,1775497858504,-992.7705606,0.00010799,2]
[419910952,1775497859374,-523.53191745,0.00010799,2]
[419910953,1775497859385,-33.07715264,0.00010799,2]
[419910954,1775497859437,-979.44615487,0.00010799,2]
[419910955,1775497859475,-503.77917054,0.00010799,2]
[419910956,1775497859486,-1516.30247805,0.00010799,2]
[419910957,1775497859498,-323.60504997,0.00010799,2]
[419910958,1775497859511,-1192.69742808,0.00010799,2]
[419910959,1775497859523,-1516.30247805,0.00010799,2]
[419910960,1775497859534,-1516.30247805,0.00010799,2]
[419910961,1775497859545,-1516.30247805,0.00010799,2]
[419910962,1775497859557,-1516.30247805,0.00010799,2]
[419910963,1775497859568,-1516.30247805,0.00010799,2]
[419910964,1775497859580,-1516.30247805,0.00010799,2]
[419910965,1775497859590,-1516.30247805,0.00010799,2]
[419910966,1775497859601,-1516.30247805,0.00010799,2]
[419910967,1775497859613,-1516.30247805,0.00010799,2]
[419910968,1775497859624,-1516.30247805,0.00010799,2]
[419910969,1775497859635,-1516.30247805,0.00010799,2]
[419910970,1775497859646,-1516.30247805,0.00010799,2]
[419910971,1775497859658,-1516.30247805,0.00010799,2]
[419910972,1775497859669,-1516.30247805,0.00010799,2]
[419910973,1775497859681,-3771.0,0.0001445,2]
[419910974,1775497859692,-227.412377,0.00015997,2]
[419910975,1775497859703,-131742.86963372,0.00016,2]
[419910976,1775497859718,-800.47612132,0.00016,2]
[419910977,1775497859751,-1516.30247805,0.00010799,2]
[419910978,1775497859762,-1516.30247805,0.00010799,2]
[419910979,1775497859774,-1470.1269696,0.00016,2]
[419910980,1775497859788,-743.33980056,0.00016,2]
[419910981,1775497859802,-764.86434579,0.00016,2]
[419910982,1775497859861,-1516.30247805,0.00010799,2]
[419910983,1775497859872,-1516.30247805,0.00010799,2]
[419910984,1775497859884,-1275.14471939,0.00016,2]
[419910985,1775497859898,-6608.52846166,0.00016,2]
[419910986,1775497859913,-2486.60152622,0.00016,2]
[419910987,1775497859927,-18314.47348714,0.00016,2]
[419910988,1775497859941,-250.35724175,0.00016,2]
[419910989,1775497859962,-1030.1308482,0.00010799,2]
[419910990,1775497859976,-486.17162985,0.00010799,2]
[419910991,1775497859988,-1286.75433422,0.00016,2]
[419910992,1775497860803,-1598.0,0.00010725,2]
[419910993,1775497860815,-483.03941011,0.00010799,2]
[419910994,1775497860852,-1033.26306794,0.00010799,2]
[419910995,1775497860864,-1516.30247805,0.00010799,2]
[419910996,1775497860876,-1516.30247805,0.00010799,2]
[419910997,1775497860887,-1516.30247805,0.00010799,2]
[419910998,1775497860900,-1516.30247805,0.00010799,2]
[419910999,1775497860911,-1516.30247805,0.00010799,2]
[419911000,1775497860923,-1516.30247805,0.00010799,2]
[419911001,1775497860935,-1107.79184863,0.00010799,2]
[419911002,1775497860959,-408.51062942,0.00010799,2]
[419911003,1775497860971,-1516.30247805,0.00010799,2]
[419911004,1775497860983,-1516.30247805,0.00010799,2]
[419911005,1775497860995,-1516.30247805,0.00010799,2]
[419911006,1775497861771,-1149.11295926,0.00010799,2]
[419911007,1775497861827,-367.18951879,0.00010799,2]
[419911008,1775497861851,-70.82492151,0.00010799,2]
[419911009,1775497861914,-347.17968046,0.00010799,2]
[419911010,1775497932899,218.66,7.173e-05,2]
[419911011,1775497933121,218.66,7.55e-05,2]
[419911012,1775497933326,218.66,7.928e-05,2]
[419911013,1775497933524,218.66,8.305e-05,2]
[419911021,1775498681523,500.0,9.215e-05,3]
[419911022,1775498747940,182.73,9.463e-05,7]
[419911023,1775498752131,-218.66,8.683e-05,2]
[419911024,1775498752153,-43.95435017,8.683e-05,2]
[419911026,1775498832756,-500.0,9e-05,2]
[419911027,1775498832779,-218.66,9.06e-05,2]
[419911028,1775498832799,-470.91479683,9.265e-05,2]
[419911029,1775498836079,-1227.09520317,9.265e-05,2]
[419911030,1775498836116,-218.66,9.438e-05,2]
[419911031,1775498836138,-200.0,9.463e-05,2]
[419911032,1775498836161,-220.12151329,9.543e-05,2]
[419911033,1775498957164,-702.29113226,9.543e-05,2]
[419911034,1775498957191,-185.0,9.549e-05,2]
[419911035,1775498957219,-1200.0,9.549e-05,2]
[419911036,1775498957247,-183.48515265,9.549e-05,2]
[419911037,1775498957274,-1200.0,9.55e-05,2]
[419911038,1775498957302,-300.0,9.55e-05,2]
[419911039,1775498957329,-300.0,9.55e-05,2]
[419911040,1775498957355,-250.0,9.551e-05,2]
[419911041,1775498957381,-5000.0,9.551e-05,2]
[419911042,1775498957406,-250.0,9.551e-05,2]
[419911043,1775498957433,-165.48,9.605e-05,2]
[419911044,1775498957458,-200.0,9.614e-05,2]
[419911045,1775498957487,-150.0,9.669e-05,2]
[419911046,1775498957512,-150.99,9.67e-05,2]
[419911047,1775498957537,-8409.38619509,9.67e-05,2]
[419911048,1775498971140,-1121.73380491,9.67e-05,2]
[419911049,1775498971161,-4961.23,9.67e-05,2]
[419911050,1775498971181,-9999.99,9.67e-05,2]
[419911051,1775498971201,-299.99,9.67e-05,2]
[419911052,1775498971223,-218.66,9.815e-05,2]
[419911053,1775498971248,-1247.92457182,9.862e-05,2]
[419911054,1775498971274,-1247.92457182,9.862e-05,2]
[419911055,1775498971300,-1247.92457182,9.862e-05,2]
[419911056,1775498971327,-1247.92457182,9.862e-05,2]
[419911057,1775498971352,-1247.92457182,9.862e-05,2]
[419911058,1775498971378,-1247.92457182,9.862e-05,2]
[419911059,1775498971403,-1247.92457182,9.862e-05,2]
[419911060,1775498971428,-1247.92457182,9.862e-05,2]
[419911061,1775498971454,-1247.92457182,9.862e-05,2]
[419911062,1775498971480,-1247.92457182,9.862e-05,2]
[419911063,1775498971510,-1247.92457182,9.862e-05,2]
[419911064,1775498971535,-1247.92457182,9.862e-05,2]
[419911065,1775498971560,-1247.92457182,9.862e-05,2]
[419911066,1775498971586,-1247.92457182,9.862e-05,2]
[419911067,1775498971611,-1247.92457182,9.862e-05,2]
[419911068,1775498971636,-1247.92457182,9.862e-05,2]
[419911069,1775498971661,-1247.92457182,9.862e-05,2]
[419911070,1775498971686,-1247.92457182,9.862e-05,2]
[419911071,1775498971711,-1247.92457182,9.862e-05,2]
[419911072,1775498971736,-1247.92457182,9.862e-05,2]
[419911073,1775498971762,-1247.92457182,9.862e-05,2]
[419911074,1775498971787,-1247.92457182,9.862e-05,2]
[419911075,1775498971812,-1247.92457182,9.862e-05,2]
[419911076,1775498971839,-1247.92457182,9.862e-05,2]
[419911077,1775498971864,-1247.92457182,9.862e-05,2]
[419911078,1775498971889,-1247.92457182,9.862e-05,2]
[419911079,1775498971914,-1247.92457182,9.862e-05,2]
[419911080,1775498971939,-1247.92457182,9.862e-05,2]
[419911081,1775498971964,-1247.92457182,9.862e-05,2]
[419911082,1775498971988,-1247.92457182,9.862e-05,2]
[419911083,1775498972014,-1247.92457182,9.862e-05,2]
[419911084,1775498972039,-374.04142867,9.862e-05,2]
[419911085,1775498972078,-752.13610115,9.862e-05,2]
[419911086,1775498973085,-121.747042,9.862e-05,2]
[419911087,1775498973113,-1247.92457182,9.862e-05,2]
[419911088,1775498973138,-1247.92457182,9.862e-05,2]
[419911089,1775498973166,-1247.92457182,9.862e-05,2]
[419911090,1775498973193,-1247.92457182,9.862e-05,2]
[419911091,1775498973220,-1247.92457182,9.862e-05,2]
[419911092,1775498973245,-1247.92457182,9.862e-05,2]
[419911093,1775498973271,-1247.92457182,9.862e-05,2]
[419911094,1775498973298,-1247.92457182,9.862e-05,2]
[419911095,1775498973323,-1247.92457182,9.862e-05,2]
[419911096,1775498973349,-1247.92457182,9.862e-05,2]
[419911097,1775498973376,-1247.92457182,9.862e-05,2]
[419911098,1775498973401,-1247.92457182,9.862e-05,2]
[419911099,1775498973428,-1247.92457182,9.862e-05,2]
[419911100,1775498973453,-1247.92457182,9.862e-05,2]
[419911101,1775498973479,-1247.92457182,9.862e-05,2]
[419911102,1775498973505,-1247.92457182,9.862e-05,2]
[419911103,1775498973531,-1241.35654775,9.862e-05,2]
[419911104,1775498973563,-1241.35654775,9.862e-05,2]
[419911105,1775498973588,-1241.35654775,9.862e-05,2]
[419911106,1775498973614,-1241.35654775,9.862e-05,2]
[419911107,1775498973639,-1241.35654775,9.862e-05,2]
[419911108,1775498973664,-1241.35654775,9.862e-05,2]
[419911109,1775498973690,-1241.35654775,9.862e-05,2]
[419911110,1775498973717,-1241.35654775,9.862e-05,2]
[419911111,1775498973742,-1241.35654775,9.862e-05,2]
[419911112,1775498973768,-1241.35654775,9.862e-05,2]
[419911113,1775498973792,-1241.35654775,9.862e-05,2]
[419911114,1775498973818,-1241.35654775,9.862e-05,2]
[419911115,1775498973844,-1241.35654775,9.862e-05,2]
[419911116,1775498973869,-1241.35654775,9.862e-05,2]
[419911117,1775498973894,-1241.35654775,9.862e-05,2]
[419911118,1775498973918,-1241.35654775,9.862e-05,2]
[419911119,1775498973944,-1241.35654775,9.862e-05,2]
[419911120,1775498973969,-1241.35654775,9.862e-05,2]
[419911121,1775498973994,-1241.35654775,9.862e-05,2]
[419911122,1775498974020,-1241.35654775,9.862e-05,2]
[419911123,1775498974047,-1241.35654775,9.862e-05,2]
[419911124,1775498974074,-1241.35654775,9.862e-05,2]
[419911125,1775498974102,-1241.35654775,9.862e-05,2]
[419911126,1775498974127,-1241.35654775,9.862e-05,2]
[419911127,1775498974152,-1241.35654775,9.862e-05,2]
[419911128,1775498974178,-1241.35654775,9.862e-05,2]
[419911129,1775498974203,-1241.35654775,9.862e-05,2]
[419911130,1775498974229,-1241.35654775,9.862e-05,2]
[419911131,1775498974253,-1241.35654775,9.862e-05,2]
[419911132,1775498974279,-1241.35654775,9.862e-05,2]
[419911133,1775498974311,-1241.35654776,9.862e-05,2]
[419911134,1775498974337,-1241.35654776,9.862e-05,2]
[419911135,1775498974363,-1241.35654776,9.862e-05,2]
[419911136,1775498974389,-1241.35654776,9.862e-05,2]
[419911137,1775498974414,-1241.35654776,9.862e-05,2]
[419911138,1775498974439,-1241.35654776,9.862e-05,2]
[419911139,1775498974466,-1241.35654776,9.862e-05,2]
[419911140,1775498974493,-1241.35654775,9.862e-05,2]
[419911141,1775498974514,-138164.53144899,9.863e-05,2]
[419911145,1775499032265,-1200.0,9.862e-05,2]
[419911146,1775499032275,-292.0,9.863e-05,2]
[419911147,1775499032285,-3073.43507497,9.863e-05,2]
[419911148,1775499032297,-478.50807902,9.863e-05,2]
[419911149,1775499032309,-351.5299975,9.863e-05,2]
[419911150,1775499032321,-440.0,9.863e-05,2]
[419911151,1775499032336,-4431.10331,9.863e-05,2]
[419911152,1775499032367,-61080.98394701,9.863e-05,2]
[419911153,1775499032421,-603.84235597,9.863e-05,2]
[419911154,1775499032474,-19689.57241436,9.863e-05,2]
[419911161,1775499033198,-132.17497743,9.863e-05,2]
[419911168,1775499038419,-796.55986639,9.863e-05,2]
[419911169,1775499038430,-4264.19002541,9.863e-05,2]
[419911170,1775499038442,-48063.37850295,9.863e-05,2]
[419911171,1775499038451,-1600.0,9.886e-05,2]
[419911172,1775499038461,-298.53872264,9.9e-05,2]
[419911173,1775499038470,-323.28480151,9.9e-05,2]
[419911174,1775499038479,-165.48,9.922e-05,2]
[419911175,1775499038489,-744.0,9.997e-05,2]
[419911176,1775499038500,-500.0,0.0001,2]
[419911177,1775499038509,-500.0,0.0001,2]
[419911178,1775499038518,-285.95309516,0.0001,2]
[419911179,1775499038527,-500.0,0.0001,2]
[419911180,1775499038536,-500.0,0.0001,2]
[419911181,1775499038546,-500.0,0.0001,2]
[419911182,1775499038555,-500.0,0.0001,2]
[419911183,1775499038564,-500.0,0.0001,2]
[419911184,1775499038573,-500.0,0.0001,2]
[419911185,1775499038582,-151.0,0.0001,2]
[419911186,1775499038591,-500.0,0.0001,2]
[419911187,1775499038601,-151.0,0.0001,2]
[419911188,1775499038610,-500.0,0.0001,2]
[419911189,1775499038620,-151.0,0.0001,2]
[419911190,1775499038629,-519.49506656,0.0001,2]
[419911191,1775499038638,-151.0,0.0001,2]
[419911192,1775499038648,-151.0,0.0001,2]
[419911193,1775499038657,-151.0,0.0001,2]
[419911194,1775499038666,-151.0,0.0001,2]
[419911195,1775499038675,-151.0,0.0001,2]
[419911196,1775499038684,-151.0,0.0001,2]
[419911197,1775499038693,-151.0,0.0001,2]
[419911198,1775499038703,-151.0,0.0001,2]
[419911199,1775499038711,-151.0,0.0001,2]
[419911200,1775499038721,-164.90344498,0.0001,2]
[419911201,1775499038729,-151.0,0.0001,2]
[419911202,1775499038739,-151.0,0.0001,2]
[419911203,1775499038749,-151.0,0.0001,2]
[419911204,1775499038758,-500.0,0.0001,2]
[419911205,1775499038767,-151.0,0.0001,2]
[419911206,1775499038776,-500.0,0.0001,2]
[419911207,1775499038785,-500.0,0.0001,2]
[419911208,1775499038795,-500.0,0.0001,2]
[419911209,1775499038804,-592.87953128,0.0001,2]
[419911210,1775499038813,-151.0,0.0001,2]
[419911211,1775499038823,-151.0,0.0001,2]
[419911212,1775499038832,-151.0,0.0001,2]
[419911213,1775499038841,-151.0,0.0001,2]
[419911214,1775499038851,-161.93,0.00010037,2]
[419911215,1775499038860,-218.66,0.00010193,2]
[419911216,1775499038869,-165.48,0.00010239,2]
[419911217,1775499038878,-5534.0,0.000105,5]
[419911218,1775499038888,-165.48,0.00010556,2]
[419911219,1775499038897,-218.66,0.0001057,2]
[419911220,1775499038907,-399.5633,0.00010575,2]
[419911221,1775499038915,-184041.71488507,0.00010594,2]
[419911222,1775499038925,-255.0,0.00010635,2]
[419911223,1775499038934,-500.0,0.00010673,2]
[419911224,1775499038943,-500.17694496,0.00010673,2]
[419911225,1775499038953,-500.0,0.00010673,2]
[419911227,1775499038961,-500.0,0.00010673,2]
[419911229,1775499038971,-324.0,0.00010681,2]
[419911230,1775499038980,-196.98404046,0.00010689,2]
[419911231,1775499038989,-154.44365078,0.00010692,2]
[419911232,1775499038998,-857171.7968,0.00010699,2]
[419911233,1775499039008,-776.0,0.00010824,2]
[419911234,1775499039017,-250.0,0.00010848,2]
[419911235,1775499039026,-1680.0,0.00010849,2]
[419911236,1775499039035,-165.48,0.00010873,2]
[419911237,1775499039045,-150.0,0.000109,2]
[419911238,1775499039054,-7668.95794728,0.00010903,2]
[419911239,1775499039063,-218.66,0.00010948,2]
[419911240,1775499039072,-500.0,0.00010959,2]
[419911241,1775499039081,-2604.59251375,0.00011,2]
[419911242,1775499039090,-7330.1775951,0.00011099,2]
[419911243,1775499039099,-7330.17759501,0.00011099,2]
[419911244,1775499039108,-8860.94804913,0.00011099,2]
[419911245,1775499039117,-8860.94804909,0.00011099,2]
[419911246,1775499039126,-3149.49739202,0.000111,2]
[419911247,1775499039136,-1600.0,0.00011122,2]
[419911248,1775499039146,-8860.94804909,0.00011145,2]
[419911249,1775499039155,-7330.17759501,0.00011145,2]
[419911250,1775499039164,-165.48,0.0001119,2]
[419911251,1775499039173,-1000.0,0.00011221,2]
[419911252,1775499039182,-1000.0,0.00011221,2]
[419911253,1775499039192,-500.0,0.00011221,2]
[419911254,1775499039200,-2014.72950065,0.00011246,2]
[419911255,1775499039210,-218.66,0.00011325,2]
[419911256,1775499039219,-433.0,0.00011699,2]
[419911257,1775499039228,-218.66,0.00011703,2]
[419911258,1775499039237,-161.93,0.0001171,2]
[419911259,1775499039246,-150.0,0.00011721,2]
[419911260,1775499039255,-500.0,0.00011768,2]
[419911261,1775499039264,-1000.0,0.00011768,2]
[419911262,1775499039273,-151.0,0.00011821,2]
[419911263,1775499039283,-8860.94804909,0.00011824,2]
[419911264,1775499039292,-7330.17759501,0.00011824,2]
[419911265,1775499039301,-2351.0,0.00011933,2]
[419911266,1775499039311,-218.66,0.0001208,2]
[419911267,1775499039320,-168.0109,0.000123,2]
[419911268,1775499039329,-1600.0,0.00012357,2]
[419911269,1775499039338,-500.0,0.00012411,2]
[419911270,1775499039347,-218.66,0.00012458,2]
[419911271,1775499039357,-8860.94804909,0.00012503,2]
[419911272,1775499039366,-7330.17759501,0.00012503,2]
[419911273,1775499039375,-218.66,0.00012835,2]
[419911274,1775499039384,-500.0,0.00012838,2]
[419911275,1775499039394,-500.16623209,0.00012838,2]
[419911276,1775499039403,-710.0,0.00012869,2]
[419911277,1775499039413,-250.0,0.00013,2]